[Event "Titled Tuesday Blitz July 20 2021"]
[White "Grabinsky, Aaron"]
[Black "Silva Lucena, Cristian"]
[WhiteFideId "2087090"]
[BlackFideId "2232588"]
[WhiteElo "2745"]
[BlackElo "2466"]
[Result "1-0"]
[Round "02"]
[TimeControl "180+1"]
[Date "2021.07.21"]
[WhiteClock "0:01:30"]
[BlackClock "0:00:47"]

1. b3 {[%clk 0:03:00]}  e5 {[%clk 0:02:57]} 2. Bb2 {[%clk 0:03:01]}  d6 {[%clk 0:02:57]} 3. e3 {[%clk 0:03:01]}  f5 {[%clk 0:02:57]} 4. d4 {[%clk 0:03:00]}  e4 {[%clk 0:02:57]} 5. h4 {[%clk 0:03:00]}  d5 {[%clk 0:02:55]} 6. c4 {[%clk 0:02:59]}  c6 {[%clk 0:02:55]} 7. Qd2 {[%clk 0:02:58]}  Nf6 {[%clk 0:02:53]} 8. Ba3 {[%clk 0:02:58]}  Bxa3 {[%clk 0:02:50]} 9. Nxa3 {[%clk 0:02:59]}  O-O {[%clk 0:02:49]} 10. Nh3 {[%clk 0:02:59]}  Be6 {[%clk 0:02:23]} 11. Nf4 {[%clk 0:02:57]}  Bf7 {[%clk 0:02:23]} 12. Be2 {[%clk 0:02:57]}  Qd6 {[%clk 0:02:22]} 13. Nb1 {[%clk 0:02:55]}  a5 {[%clk 0:02:17]} 14. Nc3 {[%clk 0:02:55]}  a4 {[%clk 0:02:07]} 15. Nxa4 {[%clk 0:02:49]}  Nbd7 {[%clk 0:01:53]} 16. c5 {[%clk 0:02:44]}  Qc7 {[%clk 0:01:52]} 17. g3 {[%clk 0:02:41]}  Ra7 {[%clk 0:01:50]} 18. Kf1 {[%clk 0:02:40]}  Ng4 {[%clk 0:01:46]} 19. Kg2 {[%clk 0:02:37]}  Rfa8 {[%clk 0:01:44]} 20. Nc3 {[%clk 0:02:34]}  Ra3 {[%clk 0:01:40]} 21. Na4 {[%clk 0:02:32]}  b5 {[%clk 0:01:36]} 22. cxb6 {[%clk 0:02:18]}  Nxb6 {[%clk 0:01:35]} 23. Nc5 {[%clk 0:02:17]}  Nf6 {[%clk 0:01:32]} 24. Rhc1 {[%clk 0:02:14]}  g6 {[%clk 0:01:30]} 25. Rc2 {[%clk 0:02:11]}  h6 {[%clk 0:01:29]} 26. Rac1 {[%clk 0:02:08]}  g5 {[%clk 0:01:21]} 27. hxg5 {[%clk 0:02:09]}  hxg5 {[%clk 0:01:21]} 28. Nfe6 {[%clk 0:02:08]}  Qe7 {[%clk 0:01:16]} 29. Nxg5 {[%clk 0:02:05]}  Be8 {[%clk 0:01:16]} 30. Nh3 {[%clk 0:02:02]}  Kg7 {[%clk 0:01:15]} 31. Nf4 {[%clk 0:02:01]}  Bf7 {[%clk 0:01:14]} 32. Rh1 {[%clk 0:01:57]}  Nc8 {[%clk 0:01:10]} 33. Na4 {[%clk 0:01:56]}  Qd6 {[%clk 0:01:04]} 34. Rhc1 {[%clk 0:01:54]}  Ne7 {[%clk 0:01:03]} 35. Rc5 {[%clk 0:01:47]}  Nd7 {[%clk 0:01:01]} 36. Qb2 {[%clk 0:01:45]}  R3xa4 {[%clk 0:00:55]} 37. bxa4 {[%clk 0:01:38]}  Nxc5 {[%clk 0:00:55]} 38. Rxc5 {[%clk 0:01:31]}  Rxa4 {[%clk 0:00:52]} 39. Qb3 {[%clk 0:01:31]}  Ra5 {[%clk 0:00:47]} 40. Rxa5 {[%clk 0:01:30]} 1-0


[Site "https://www.chess.com"]

[Event "Titled Tuesday Blitz July 20 2021"]
[White "Gurevich, Dmitry"]
[Black "Kamara, Ansumana"]
[WhiteFideId "2000407"]
[BlackFideId "1622218"]
[WhiteElo "2506"]
[BlackElo "1935"]
[Result "1-0"]
[Round "02"]
[TimeControl "180+1"]
[Date "2021.07.21"]
[WhiteClock "0:01:30"]
[BlackClock "0:00:53"]

1. d4 {[%clk 0:03:00]}  Nf6 {[%clk 0:02:59]} 2. c4 {[%clk 0:02:57]}  g6 {[%clk 0:02:58]} 3. Nc3 {[%clk 0:02:57]}  Bg7 {[%clk 0:02:58]} 4. e4 {[%clk 0:02:56]}  d6 {[%clk 0:02:58]} 5. Nf3 {[%clk 0:02:56]}  O-O {[%clk 0:02:59]} 6. Be2 {[%clk 0:02:56]}  e5 {[%clk 0:02:59]} 7. O-O {[%clk 0:02:55]}  Nc6 {[%clk 0:02:58]} 8. d5 {[%clk 0:02:55]}  Ne7 {[%clk 0:02:57]} 9. Ne1 {[%clk 0:02:55]}  Nd7 {[%clk 0:02:57]} 10. Be3 {[%clk 0:02:54]}  f5 {[%clk 0:02:57]} 11. f3 {[%clk 0:02:55]}  f4 {[%clk 0:02:57]} 12. Bf2 {[%clk 0:02:55]}  g5 {[%clk 0:02:58]} 13. Nb5 {[%clk 0:02:55]}  a6 {[%clk 0:02:56]} 14. Na7 {[%clk 0:02:55]}  h5 {[%clk 0:02:51]} 15. Nxc8 {[%clk 0:02:54]}  Rxc8 {[%clk 0:02:50]} 16. Rc1 {[%clk 0:02:52]}  Ng6 {[%clk 0:02:49]} 17. Nd3 {[%clk 0:02:51]}  b6 {[%clk 0:02:49]} 18. b4 {[%clk 0:02:50]}  Ra8 {[%clk 0:02:48]} 19. c5 {[%clk 0:02:50]}  bxc5 {[%clk 0:02:45]} 20. bxc5 {[%clk 0:02:49]}  Rf7 {[%clk 0:02:44]} 21. cxd6 {[%clk 0:02:48]}  cxd6 {[%clk 0:02:43]} 22. Rc6 {[%clk 0:02:37]}  Nf6 {[%clk 0:02:39]} 23. h3 {[%clk 0:02:20]}  g4 {[%clk 0:02:33]} 24. fxg4 {[%clk 0:02:18]}  Nxe4 {[%clk 0:02:32]} 25. gxh5 {[%clk 0:02:16]}  Nxf2 {[%clk 0:02:25]} 26. Nxf2 {[%clk 0:02:13]}  Nh4 {[%clk 0:02:24]} 27. Bg4 {[%clk 0:02:12]}  Qg5 {[%clk 0:02:17]} 28. Ne4 {[%clk 0:02:10]}  Qh6 {[%clk 0:02:09]} 29. Be6 {[%clk 0:02:10]}  f3 {[%clk 0:02:03]} 30. Rxf3 {[%clk 0:02:06]}  Nxf3+ {[%clk 0:02:02]} 31. Qxf3 {[%clk 0:02:05]}  Rf8 {[%clk 0:02:00]} 32. Rc7 {[%clk 0:02:05]}  Qf4 {[%clk 0:01:42]} 33. Qxf4 {[%clk 0:02:02]}  exf4 {[%clk 0:01:40]} 34. Ng5 {[%clk 0:02:01]}  Bd4+ {[%clk 0:01:37]} 35. Kf1 {[%clk 0:02:00]}  Kg7 {[%clk 0:01:36]} 36. Rxf7+ {[%clk 0:01:49]}  Rxf7 {[%clk 0:01:34]} 37. Nxf7 {[%clk 0:01:49]}  Kf6 {[%clk 0:01:32]} 38. Nxd6 {[%clk 0:01:44]}  a5 {[%clk 0:01:29]} 39. Ne4+ {[%clk 0:01:41]}  Ke5 {[%clk 0:01:27]} 40. Ng5 {[%clk 0:01:41]}  Kf6 {[%clk 0:01:23]} 41. Nf3 {[%clk 0:01:37]}  Bc3 {[%clk 0:01:22]} 42. Ke2 {[%clk 0:01:37]}  a4 {[%clk 0:01:20]} 43. Kd3 {[%clk 0:01:36]}  Bb2 {[%clk 0:01:19]} 44. Ke4 {[%clk 0:01:36]}  Bc1 {[%clk 0:01:16]} 45. Ne5 {[%clk 0:01:34]}  Kg5 {[%clk 0:01:12]} 46. Bg4 {[%clk 0:01:34]}  a3 {[%clk 0:01:09]} 47. d6 {[%clk 0:01:33]}  Kf6 {[%clk 0:01:05]} 48. d7 {[%clk 0:01:33]}  Ke7 {[%clk 0:01:04]} 49. Nc6+ {[%clk 0:01:33]}  Kd6 {[%clk 0:01:02]} 50. d8=Q+ {[%clk 0:01:33]}  Kxc6 {[%clk 0:01:02]} 51. Qc8+ {[%clk 0:01:33]}  Kd6 {[%clk 0:01:00]} 52. Qxc1 {[%clk 0:01:33]}  Ke7 {[%clk 0:01:00]} 53. Qxa3+ {[%clk 0:01:31]}  Kf6 {[%clk 0:00:58]} 54. Qd6+ {[%clk 0:01:30]}  Kg5 {[%clk 0:00:57]} 55. Qxf4+ {[%clk 0:01:30]}  Kh4 {[%clk 0:00:53]} 56. g3# {[%clk 0:01:30]} 1-0


[Site "https://www.chess.com"]

[Event "Titled Tuesday Blitz July 20 2021"]
[White "Hryshchenko, Kamila"]
[Black "Gallana, Marco"]
[WhiteFideId "14147491"]
[BlackFideId "824542"]
[WhiteElo "1966"]
[BlackElo "2281"]
[Result "1-0"]
[Round "02"]
[TimeControl "180+1"]
[Date "2021.07.21"]
[WhiteClock "0:01:59"]
[BlackClock "0:02:15"]

1. e4 {[%clk 0:03:00]}  c5 {[%clk 0:02:59]} 2. Nf3 {[%clk 0:02:56]}  d6 {[%clk 0:02:59]} 3. d4 {[%clk 0:02:51]}  cxd4 {[%clk 0:03:00]} 4. Nxd4 {[%clk 0:02:50]}  Nf6 {[%clk 0:03:00]} 5. Nc3 {[%clk 0:02:48]}  a6 {[%clk 0:03:00]} 6. Bc4 {[%clk 0:02:46]}  e6 {[%clk 0:02:59]} 7. O-O {[%clk 0:02:45]}  Nbd7 {[%clk 0:02:58]} 8. Bxe6 {[%clk 0:02:43]}  fxe6 {[%clk 0:02:57]} 9. Nxe6 {[%clk 0:02:44]}  Qa5 {[%clk 0:02:56]} 10. Nd5 {[%clk 0:02:40]}  Kf7 {[%clk 0:02:53]} 11. Bd2 {[%clk 0:02:29]}  Qb5 {[%clk 0:02:53]} 12. Nec7 {[%clk 0:02:27]}  Qc6 {[%clk 0:02:43]} 13. Nxa8 {[%clk 0:02:25]}  Nxd5 {[%clk 0:02:42]} 14. Qh5+ {[%clk 0:02:17]}  g6 {[%clk 0:02:36]} 15. Qxd5+ {[%clk 0:02:14]}  Qxd5 {[%clk 0:02:36]} 16. exd5 {[%clk 0:02:15]}  Be7 {[%clk 0:02:33]} 17. Nc7 {[%clk 0:02:11]}  Nb6 {[%clk 0:02:26]} 18. Be3 {[%clk 0:02:06]}  Nc4 {[%clk 0:02:26]} 19. Bd4 {[%clk 0:02:06]}  Rf8 {[%clk 0:02:23]} 20. b3 {[%clk 0:02:05]}  Nd2 {[%clk 0:02:23]} 21. Rfe1 {[%clk 0:02:02]}  Bd8 {[%clk 0:02:22]} 22. Ne6 {[%clk 0:02:01]}  Re8 {[%clk 0:02:16]} 23. Nxd8+ {[%clk 0:01:59]}  Rxd8 {[%clk 0:02:15]} 24. Bc3 {[%clk 0:01:59]} 1-0


[Site "https://www.chess.com"]

[Event "Titled Tuesday Blitz July 20 2021"]
[White "Huynh, Ngoc Thuy Linh"]
[Black "Preotu, Razvan"]
[WhiteFideId "12403334"]
[BlackFideId "2613280"]
[WhiteElo "1780"]
[BlackElo "2407"]
[Result "1-0"]
[Round "02"]
[TimeControl "180+1"]
[Date "2021.07.20"]
[WhiteClock "0:00:22"]
[BlackClock "0:00:02"]

1. c4 {[%clk 0:03:00]}  g6 {[%clk 0:02:57]} 2. g3 {[%clk 0:03:00]}  Bg7 {[%clk 0:02:57]} 3. Bg2 {[%clk 0:03:01]}  c5 {[%clk 0:02:58]} 4. Nf3 {[%clk 0:03:01]}  Nc6 {[%clk 0:02:58]} 5. O-O {[%clk 0:03:02]}  d6 {[%clk 0:02:59]} 6. Nc3 {[%clk 0:03:02]}  Bf5 {[%clk 0:02:59]} 7. d3 {[%clk 0:02:59]}  Qd7 {[%clk 0:02:59]} 8. Re1 {[%clk 0:02:44]}  e5 {[%clk 0:02:54]} 9. Nd5 {[%clk 0:02:32]}  Nge7 {[%clk 0:02:53]} 10. Nh4 {[%clk 0:02:32]}  Be6 {[%clk 0:02:07]} 11. Bh6 {[%clk 0:02:30]}  Kf8 {[%clk 0:02:07]} 12. Nf6 {[%clk 0:02:20]}  Qd8 {[%clk 0:02:07]} 13. Qd2 {[%clk 0:02:19]}  Ng8 {[%clk 0:01:48]} 14. Nxg8 {[%clk 0:01:41]}  Kxg8 {[%clk 0:01:47]} 15. Rab1 {[%clk 0:01:38]}  Bf6 {[%clk 0:01:28]} 16. Nf3 {[%clk 0:01:36]}  Be7 {[%clk 0:01:28]} 17. h4 {[%clk 0:01:34]}  f6 {[%clk 0:01:28]} 18. a3 {[%clk 0:01:32]}  a5 {[%clk 0:01:28]} 19. Rf1 {[%clk 0:01:08]}  Kf7 {[%clk 0:01:21]} 20. Nh2 {[%clk 0:01:07]}  Nd4 {[%clk 0:00:58]} 21. f4 {[%clk 0:01:02]}  Nf5 {[%clk 0:00:57]} 22. fxe5 {[%clk 0:00:58]}  dxe5 {[%clk 0:00:53]} 23. Rf3 {[%clk 0:00:53]}  Qd4+ {[%clk 0:00:46]} 24. Be3 {[%clk 0:00:48]}  Nxe3 {[%clk 0:00:45]} 25. Qxe3 {[%clk 0:00:49]}  Qxe3+ {[%clk 0:00:38]} 26. Rxe3 {[%clk 0:00:50]}  Rab8 {[%clk 0:00:38]} 27. Rf1 {[%clk 0:00:48]}  Kg7 {[%clk 0:00:37]} 28. a4 {[%clk 0:00:47]}  Bd6 {[%clk 0:00:25]} 29. g4 {[%clk 0:00:46]}  h5 {[%clk 0:00:21]} 30. g5 {[%clk 0:00:45]}  f5 {[%clk 0:00:20]} 31. Nf3 {[%clk 0:00:39]}  f4 {[%clk 0:00:20]} 32. Rxe5 {[%clk 0:00:34]}  Bxe5 {[%clk 0:00:20]} 33. Nxe5 {[%clk 0:00:35]}  Rhf8 {[%clk 0:00:20]} 34. Rf2 {[%clk 0:00:33]}  b6 {[%clk 0:00:19]} 35. b3 {[%clk 0:00:31]}  Rbd8 {[%clk 0:00:19]} 36. Nf3 {[%clk 0:00:29]}  Bg4 {[%clk 0:00:19]} 37. Nd2 {[%clk 0:00:29]}  Rde8 {[%clk 0:00:19]} 38. Ne4 {[%clk 0:00:29]}  Re5 {[%clk 0:00:17]} 39. Bf3 {[%clk 0:00:28]}  Bxf3 {[%clk 0:00:14]} 40. Rxf3 {[%clk 0:00:28]}  Rff5 {[%clk 0:00:08]} 41. Kf2 {[%clk 0:00:28]}  Kf7 {[%clk 0:00:08]} 42. Nf6 {[%clk 0:00:27]}  Re3 {[%clk 0:00:07]} 43. Nd5 {[%clk 0:00:25]}  Rxf3+ {[%clk 0:00:07]} 44. Kxf3 {[%clk 0:00:26]}  Ke6 {[%clk 0:00:06]} 45. Nxb6 {[%clk 0:00:26]}  Rf8 {[%clk 0:00:06]} 46. Nd5 {[%clk 0:00:24]}  Rb8 {[%clk 0:00:06]} 47. Nxf4+ {[%clk 0:00:24]}  Kf7 {[%clk 0:00:07]} 48. Ke4 {[%clk 0:00:20]}  Rxb3 {[%clk 0:00:07]} 49. Kd5 {[%clk 0:00:21]}  Rb4 {[%clk 0:00:07]} 50. Kxc5 {[%clk 0:00:21]}  Rxa4 {[%clk 0:00:08]} 51. e4 {[%clk 0:00:21]}  Ra1 {[%clk 0:00:07]} 52. e5 {[%clk 0:00:21]}  Rb1 {[%clk 0:00:06]} 53. e6+ {[%clk 0:00:19]}  Ke8 {[%clk 0:00:06]} 54. d4 {[%clk 0:00:20]}  a4 {[%clk 0:00:07]} 55. d5 {[%clk 0:00:20]}  a3 {[%clk 0:00:07]} 56. d6 {[%clk 0:00:21]}  Rd1 {[%clk 0:00:03]} 57. Nd5 {[%clk 0:00:20]}  a2 {[%clk 0:00:01]} 58. d7+ {[%clk 0:00:20]}  Kd8 {[%clk 0:00:02]} 59. Kd6 {[%clk 0:00:19]}  Re1 {[%clk 0:00:02]} 60. e7+ {[%clk 0:00:20]}  Rxe7 {[%clk 0:00:02]} 61. Nxe7 {[%clk 0:00:21]}  a1=Q {[%clk 0:00:02]} 62. Nc6# {[%clk 0:00:22]} 1-0


[Site "https://www.chess.com"]

[Event "Titled Tuesday Blitz July 20 2021"]
[White "Ivanov, Mike"]
[Black "Moskalenko, Alexander"]
[WhiteFideId "2613158"]
[BlackFideId "4155351"]
[WhiteElo "2197"]
[BlackElo "2495"]
[Result "0-1"]
[Round "02"]
[TimeControl "180+1"]
[Date "2021.07.20"]
[WhiteClock "0:00:05"]
[BlackClock "0:00:25"]

1. e4 {[%clk 0:03:00]}  c5 {[%clk 0:02:59]} 2. Nf3 {[%clk 0:03:01]}  Nc6 {[%clk 0:02:59]} 3. Bb5 {[%clk 0:03:00]}  Nf6 {[%clk 0:02:58]} 4. e5 {[%clk 0:02:54]}  Ng4 {[%clk 0:02:57]} 5. Bxc6 {[%clk 0:02:53]}  dxc6 {[%clk 0:02:58]} 6. d3 {[%clk 0:02:50]}  g6 {[%clk 0:02:47]} 7. Bf4 {[%clk 0:02:38]}  Bg7 {[%clk 0:02:45]} 8. h3 {[%clk 0:02:30]}  Nh6 {[%clk 0:02:45]} 9. Nc3 {[%clk 0:02:30]}  Nf5 {[%clk 0:02:45]} 10. Ne4 {[%clk 0:02:29]}  b6 {[%clk 0:02:45]} 11. Qd2 {[%clk 0:02:21]}  h6 {[%clk 0:02:42]} 12. c3 {[%clk 0:02:18]}  g5 {[%clk 0:02:40]} 13. Bh2 {[%clk 0:02:17]}  Qd5 {[%clk 0:02:32]} 14. g4 {[%clk 0:02:00]}  c4 {[%clk 0:02:03]} 15. gxf5 {[%clk 0:01:50]}  Bxf5 {[%clk 0:02:02]} 16. Qe3 {[%clk 0:01:36]}  cxd3 {[%clk 0:02:02]} 17. Nf6+ {[%clk 0:01:29]}  Bxf6 {[%clk 0:01:42]} 18. exf6 {[%clk 0:01:29]}  d2+ {[%clk 0:01:42]} 19. Kf1 {[%clk 0:01:20]}  Bxh3+ {[%clk 0:01:40]} 20. Ke2 {[%clk 0:01:00]}  Qb5+ {[%clk 0:01:35]} 21. Qd3 {[%clk 0:01:00]}  Qxd3+ {[%clk 0:01:33]} 22. Kxd3 {[%clk 0:01:00]}  Bg2 {[%clk 0:01:32]} 23. Nxd2 {[%clk 0:00:59]}  Bxh1 {[%clk 0:01:28]} 24. Rxh1 {[%clk 0:01:00]}  exf6 {[%clk 0:01:28]} 25. Ne4 {[%clk 0:00:56]}  O-O-O {[%clk 0:01:11]} 26. Kc2 {[%clk 0:00:55]}  Rd5 {[%clk 0:00:46]} 27. Nxf6 {[%clk 0:00:47]}  Rf5 {[%clk 0:00:46]} 28. Ne4 {[%clk 0:00:45]}  Kd7 {[%clk 0:00:38]} 29. Rd1+ {[%clk 0:00:38]}  Ke7 {[%clk 0:00:38]} 30. Bd6+ {[%clk 0:00:32]}  Ke6 {[%clk 0:00:37]} 31. Re1 {[%clk 0:00:20]}  Kd7 {[%clk 0:00:30]} 32. Rd1 {[%clk 0:00:20]}  Rd5 {[%clk 0:00:29]} 33. Bh2 {[%clk 0:00:08]}  Rxd1 {[%clk 0:00:27]} 34. Kxd1 {[%clk 0:00:09]}  f5 {[%clk 0:00:26]} 35. Ng3 {[%clk 0:00:07]}  f4 {[%clk 0:00:24]} 36. Nh5 {[%clk 0:00:07]}  Ke6 {[%clk 0:00:24]} 37. f3 {[%clk 0:00:07]}  Kf5 {[%clk 0:00:25]} 38. Ke2 {[%clk 0:00:04]}  Re8+ {[%clk 0:00:24]} 39. Kf2 {[%clk 0:00:05]}  Kg6 {[%clk 0:00:25]} 0-1


[Site "https://www.chess.com"]

[Event "Titled Tuesday Blitz July 20 2021"]
[White "Jakubowska, Anna"]
[Black "Krivonosov, Oleg"]
[WhiteFideId "1121952"]
[BlackFideId "11600349"]
[WhiteElo "2006"]
[BlackElo "2469"]
[Result "0-1"]
[Round "02"]
[TimeControl "180+1"]
[Date "2021.07.21"]
[WhiteClock "0:01:53"]
[BlackClock "0:02:10"]

1. e4 {[%clk 0:03:00]}  e5 {[%clk 0:02:59]} 2. Nc3 {[%clk 0:02:59]}  Nf6 {[%clk 0:02:58]} 3. g3 {[%clk 0:02:59]}  b6 {[%clk 0:02:57]} 4. Bg2 {[%clk 0:02:58]}  Bb7 {[%clk 0:02:57]} 5. d3 {[%clk 0:02:59]}  d5 {[%clk 0:02:57]} 6. exd5 {[%clk 0:02:49]}  Nxd5 {[%clk 0:02:56]} 7. Qf3 {[%clk 0:02:47]}  c6 {[%clk 0:02:45]} 8. Nxd5 {[%clk 0:02:44]}  cxd5 {[%clk 0:02:44]} 9. c4 {[%clk 0:02:41]}  Bb4+ {[%clk 0:02:42]} 10. Kf1 {[%clk 0:02:38]}  O-O {[%clk 0:02:40]} 11. cxd5 {[%clk 0:02:38]}  Na6 {[%clk 0:02:39]} 12. Ne2 {[%clk 0:02:33]}  Nc7 {[%clk 0:02:35]} 13. Nc3 {[%clk 0:02:14]}  Bxc3 {[%clk 0:02:32]} 14. bxc3 {[%clk 0:02:15]}  Bxd5 {[%clk 0:02:31]} 15. Qe2 {[%clk 0:02:15]}  Bxg2+ {[%clk 0:02:29]} 16. Kxg2 {[%clk 0:02:15]}  Qd5+ {[%clk 0:02:29]} 17. f3 {[%clk 0:02:15]}  Rad8 {[%clk 0:02:27]} 18. Rd1 {[%clk 0:02:15]}  Ne6 {[%clk 0:02:25]} 19. Be3 {[%clk 0:02:15]}  Rd7 {[%clk 0:02:20]} 20. Rd2 {[%clk 0:02:12]}  Rfd8 {[%clk 0:02:20]} 21. Rad1 {[%clk 0:02:13]}  h6 {[%clk 0:02:19]} 22. h4 {[%clk 0:02:11]}  Qa5 {[%clk 0:02:16]} 23. c4 {[%clk 0:01:54]}  Nd4 {[%clk 0:02:11]} 24. Bxd4 {[%clk 0:01:54]}  Rxd4 {[%clk 0:02:12]} 25. Qxe5 {[%clk 0:01:53]}  Qxe5 {[%clk 0:02:10]} 0-1


[Site "https://www.chess.com"]

[Event "Titled Tuesday Blitz July 20 2021"]
[White "Karthikeyan, Murali"]
[Black "Saravana, Krishnan P."]
[WhiteFideId "5074452"]
[BlackFideId "5018382"]
[WhiteElo "2730"]
[BlackElo "2461"]
[Result "1-0"]
[Round "02"]
[TimeControl "180+1"]
[Date "2021.07.21"]
[WhiteClock "0:00:15"]
[BlackClock "0:00:13"]

1. Nf3 {[%clk 0:02:58]}  d5 {[%clk 0:02:57]} 2. g3 {[%clk 0:02:57]}  g6 {[%clk 0:02:57]} 3. d4 {[%clk 0:02:56]}  Bg7 {[%clk 0:02:57]} 4. Bg2 {[%clk 0:02:54]}  Nf6 {[%clk 0:02:57]} 5. c4 {[%clk 0:02:54]}  dxc4 {[%clk 0:02:55]} 6. Nbd2 {[%clk 0:02:52]}  O-O {[%clk 0:02:50]} 7. Nxc4 {[%clk 0:02:51]}  c5 {[%clk 0:02:41]} 8. O-O {[%clk 0:02:43]}  cxd4 {[%clk 0:02:36]} 9. Nxd4 {[%clk 0:02:43]}  Nd5 {[%clk 0:02:24]} 10. Nb5 {[%clk 0:02:27]}  e6 {[%clk 0:02:23]} 11. e4 {[%clk 0:01:51]}  a6 {[%clk 0:02:19]} 12. Nbd6 {[%clk 0:01:38]}  Ne7 {[%clk 0:02:14]} 13. a4 {[%clk 0:01:30]}  Nbc6 {[%clk 0:02:01]} 14. Be3 {[%clk 0:01:28]}  Rb8 {[%clk 0:01:21]} 15. a5 {[%clk 0:01:23]}  e5 {[%clk 0:01:18]} 16. Bb6 {[%clk 0:01:08]}  Qd7 {[%clk 0:01:17]} 17. f4 {[%clk 0:01:04]}  exf4 {[%clk 0:01:13]} 18. gxf4 {[%clk 0:01:03]}  Qg4 {[%clk 0:00:55]} 19. f5 {[%clk 0:00:45]}  gxf5 {[%clk 0:00:38]} 20. exf5 {[%clk 0:00:32]}  Qh4 {[%clk 0:00:22]} 21. Ra3 {[%clk 0:00:19]}  Bd4+ {[%clk 0:00:16]} 22. Kh1 {[%clk 0:00:17]}  Bxb6 {[%clk 0:00:16]} 23. Nxb6 {[%clk 0:00:17]}  Kh8 {[%clk 0:00:14]} 24. Rg3 {[%clk 0:00:15]}  Rg8 {[%clk 0:00:13]} 25. Nxf7# {[%clk 0:00:15]} 1-0


[Site "https://www.chess.com"]

[Event "Titled Tuesday Blitz July 20 2021"]
[White "Kassimov, Baurzhan"]
[Black "Le, Tuan Minh"]
[WhiteFideId "13704800"]
[BlackFideId "12401153"]
[WhiteElo "2234"]
[BlackElo "2450"]
[Result "0-1"]
[Round "02"]
[TimeControl "180+1"]
[Date "2021.07.20"]
[WhiteClock "0:00:02"]
[BlackClock "0:00:09"]

1. e4 {[%clk 0:03:00]}  c5 {[%clk 0:03:00]} 2. Nf3 {[%clk 0:03:00]}  Nf6 {[%clk 0:03:00]} 3. Nc3 {[%clk 0:02:59]}  d5 {[%clk 0:03:00]} 4. Bb5+ {[%clk 0:02:59]}  Bd7 {[%clk 0:02:57]} 5. e5 {[%clk 0:02:51]}  Bxb5 {[%clk 0:02:56]} 6. Nxb5 {[%clk 0:02:43]}  Qd7 {[%clk 0:02:55]} 7. Qe2 {[%clk 0:02:20]}  a6 {[%clk 0:02:52]} 8. exf6 {[%clk 0:02:11]}  Qxb5 {[%clk 0:02:44]} 9. Qe5 {[%clk 0:01:51]}  gxf6 {[%clk 0:02:01]} 10. Qxd5 {[%clk 0:01:51]}  Rg8 {[%clk 0:02:02]} 11. g3 {[%clk 0:01:44]}  e6 {[%clk 0:01:52]} 12. Qe4 {[%clk 0:01:28]}  Qc6 {[%clk 0:01:52]} 13. d3 {[%clk 0:01:24]}  f5 {[%clk 0:01:51]} 14. Qe2 {[%clk 0:01:20]}  Bg7 {[%clk 0:01:51]} 15. O-O {[%clk 0:01:17]}  Nd7 {[%clk 0:01:50]} 16. Rb1 {[%clk 0:01:12]}  Bf6 {[%clk 0:01:40]} 17. b4 {[%clk 0:00:54]}  Rc8 {[%clk 0:01:22]} 18. c4 {[%clk 0:00:45]}  Kf8 {[%clk 0:01:09]} 19. b5 {[%clk 0:00:43]}  axb5 {[%clk 0:01:08]} 20. Rxb5 {[%clk 0:00:42]}  Kg7 {[%clk 0:01:08]} 21. Bb2 {[%clk 0:00:40]}  Bxb2 {[%clk 0:00:59]} 22. Qxb2+ {[%clk 0:00:40]}  f6 {[%clk 0:00:37]} 23. Rxb7 {[%clk 0:00:39]}  Rb8 {[%clk 0:00:38]} 24. Rb1 {[%clk 0:00:38]}  Kh8 {[%clk 0:00:19]} 25. Nd2 {[%clk 0:00:29]}  Rbd8 {[%clk 0:00:16]} 26. Qb5 {[%clk 0:00:20]}  Qd6 {[%clk 0:00:16]} 27. Nf3 {[%clk 0:00:16]}  Qxd3 {[%clk 0:00:14]} 28. Qc6 {[%clk 0:00:16]}  Qe4 {[%clk 0:00:12]} 29. Qxe4 {[%clk 0:00:08]}  fxe4 {[%clk 0:00:13]} 30. Nh4 {[%clk 0:00:07]}  Ne5 {[%clk 0:00:12]} 31. Rc7 {[%clk 0:00:07]}  Rg7 {[%clk 0:00:09]} 32. Rxg7 {[%clk 0:00:06]}  Kxg7 {[%clk 0:00:10]} 33. Rb7+ {[%clk 0:00:06]}  Kh6 {[%clk 0:00:11]} 34. Re7 {[%clk 0:00:05]}  Rd6 {[%clk 0:00:11]} 35. a4 {[%clk 0:00:04]}  Ra6 {[%clk 0:00:09]} 36. Rc7 {[%clk 0:00:02]}  Ra5 {[%clk 0:00:09]} 37. Rxc5 {[%clk 0:00:02]}  Rxc5 {[%clk 0:00:09]} 0-1


[Site "https://www.chess.com"]

[Event "Titled Tuesday Blitz July 20 2021"]
[White "Kazakov, Mikhail"]
[Black "Perez Gormaz, Matias"]
[WhiteFideId "14102749"]
[BlackFideId "3406342"]
[WhiteElo "2373"]
[BlackElo "2414"]
[Result "1-0"]
[Round "02"]
[TimeControl "180+1"]
[Date "2021.07.21"]
[WhiteClock "0:00:11"]
[BlackClock "0:00:04"]

1. d4 {[%clk 0:02:57]}  d5 {[%clk 0:02:59]} 2. c4 {[%clk 0:02:57]}  e6 {[%clk 0:02:59]} 3. Nc3 {[%clk 0:02:56]}  Bb4 {[%clk 0:03:00]} 4. Nf3 {[%clk 0:02:53]}  dxc4 {[%clk 0:02:59]} 5. e3 {[%clk 0:02:52]}  b5 {[%clk 0:03:00]} 6. Bd2 {[%clk 0:02:51]}  c6 {[%clk 0:02:58]} 7. a4 {[%clk 0:02:45]}  a5 {[%clk 0:02:53]} 8. axb5 {[%clk 0:02:41]}  Bxc3 {[%clk 0:02:52]} 9. Bxc3 {[%clk 0:02:38]}  cxb5 {[%clk 0:02:53]} 10. b3 {[%clk 0:02:35]}  Bb7 {[%clk 0:02:52]} 11. bxc4 {[%clk 0:02:35]}  b4 {[%clk 0:02:52]} 12. Bb2 {[%clk 0:02:32]}  Nf6 {[%clk 0:02:52]} 13. Bd3 {[%clk 0:02:26]}  O-O {[%clk 0:02:52]} 14. O-O {[%clk 0:02:22]}  Nbd7 {[%clk 0:02:53]} 15. Nd2 {[%clk 0:02:19]}  e5 {[%clk 0:02:52]} 16. d5 {[%clk 0:02:10]}  Nc5 {[%clk 0:02:44]} 17. Nb3 {[%clk 0:02:09]}  Nxb3 {[%clk 0:02:32]} 18. Qxb3 {[%clk 0:02:07]}  Nd7 {[%clk 0:02:33]} 19. Qc2 {[%clk 0:02:02]}  h5 {[%clk 0:02:13]} 20. Rab1 {[%clk 0:01:58]}  Qc7 {[%clk 0:02:08]} 21. Ba1 {[%clk 0:01:52]}  Nc5 {[%clk 0:02:07]} 22. Be2 {[%clk 0:01:51]}  g6 {[%clk 0:01:55]} 23. f4 {[%clk 0:01:49]}  Rae8 {[%clk 0:01:54]} 24. f5 {[%clk 0:01:41]}  Qd6 {[%clk 0:01:53]} 25. e4 {[%clk 0:01:31]}  Qf6 {[%clk 0:01:20]} 26. fxg6 {[%clk 0:01:25]}  Qxg6 {[%clk 0:01:19]} 27. Bf3 {[%clk 0:01:24]}  Bc8 {[%clk 0:01:16]} 28. Rbe1 {[%clk 0:01:06]}  a4 {[%clk 0:01:06]} 29. Qe2 {[%clk 0:01:03]}  Bg4 {[%clk 0:01:04]} 30. Qe3 {[%clk 0:00:58]}  Nb3 {[%clk 0:00:57]} 31. Bxg4 {[%clk 0:00:52]}  hxg4 {[%clk 0:00:55]} 32. Rf5 {[%clk 0:00:43]}  f6 {[%clk 0:00:55]} 33. c5 {[%clk 0:00:42]}  Rb8 {[%clk 0:00:39]} 34. c6 {[%clk 0:00:41]}  Nxa1 {[%clk 0:00:39]} 35. Rxa1 {[%clk 0:00:40]}  b3 {[%clk 0:00:38]} 36. c7 {[%clk 0:00:35]}  b2 {[%clk 0:00:39]} 37. Rb1 {[%clk 0:00:34]}  Rb3 {[%clk 0:00:39]} 38. Qc5 {[%clk 0:00:26]}  Qe8 {[%clk 0:00:25]} 39. d6 {[%clk 0:00:18]}  a3 {[%clk 0:00:10]} 40. Qd5+ {[%clk 0:00:18]}  Qf7 {[%clk 0:00:09]} 41. Rxf6 {[%clk 0:00:16]}  a2 {[%clk 0:00:03]} 42. Rxf7 {[%clk 0:00:14]}  Rxf7 {[%clk 0:00:02]} 43. c8=Q+ {[%clk 0:00:13]}  Kg7 {[%clk 0:00:03]} 44. Qxg4+ {[%clk 0:00:12]}  Kh6 {[%clk 0:00:04]} 45. Qh4+ {[%clk 0:00:12]}  Kg6 {[%clk 0:00:03]} 46. Qg4+ {[%clk 0:00:11]}  Kh6 {[%clk 0:00:04]} 47. Qde6+ {[%clk 0:00:11]} 1-0


[Site "https://www.chess.com"]